fUSD/lending_fUSD_20241205
["ID","MTS","AMOUNT","RATE_DAILY","PERIOD"]
[344414534,1733426835959,-2425.90071912,7.692e-05,2]
[344414535,1733426836033,-227.68807831,7.692e-05,2]
[344414536,1733426836118,-5750.28318606,7.692e-05,2]
[344414537,1733426836188,-200.0,7.692e-05,2]
[344414538,1733426836253,-200.0,7.692e-05,2]
[344414539,1733426836314,-303.58410442,7.692e-05,2]
[344414540,1733426836382,-200.0,7.692e-05,2]
[344414541,1733426836447,-200.0,7.692e-05,2]
[344414542,1733426836512,-200.0,7.692e-05,2]
[344414543,1733426836580,-200.0,7.692e-05,2]
[344414544,1733426836645,-7667.04424808,7.693e-05,2]
[344414545,1733426836716,-200.0,7.693e-05,2]
[344414546,1733426836777,-200.0,7.693e-05,2]
[344414547,1733426836838,-200.0,7.693e-05,2]
[344414548,1733426836905,-456.41892902,7.693e-05,2]
[344414549,1733426836969,-200.0,7.693e-05,2]
[344414550,1733426837033,-200.0,7.693e-05,2]
[344414551,1733426837094,-200.0,7.693e-05,2]
[344414552,1733426837158,-243.0158831,7.693e-05,2]
[344414553,1733426837221,-200.0,7.693e-05,2]
[344414554,1733426837286,-9575.65174383,7.693e-05,2]
[344414555,1733426837349,-200.0,7.693e-05,2]
[344414556,1733426837410,-767.57014941,7.693e-05,2]
[344414557,1733426837470,-200.0,7.694e-05,2]
[344414558,1733426837548,-3234.53429216,7.694e-05,2]
[344414559,1733426837608,-575.67761206,7.694e-05,2]
[344414560,1733426837672,-432.02823662,7.694e-05,2]
[344414561,1733426837736,-200.0,7.694e-05,2]
[344414562,1733426837801,-242.86399259,7.694e-05,2]
[344414563,1733426837866,-271.0671233,7.694e-05,2]
[344414564,1733426837936,-1364.5691545,7.694e-05,2]
[344414565,1733426838003,-281.55591706,7.694e-05,2]
[344414566,1733426838074,-4312.71238954,7.694e-05,2]
[344414567,1733426838143,-200.0,7.694e-05,2]
[344414568,1733426838211,-200.0,7.694e-05,2]
[344414569,1733426838276,-200.0,7.694e-05,2]
[344414570,1733426838338,-200.0,7.695e-05,2]
[344414571,1733426838406,-200.0,7.695e-05,2]
[344414572,1733426838469,-200.0,7.695e-05,2]
[344414573,1733426838538,-342.31419677,7.695e-05,2]
[344414574,1733426838606,-256.73564757,7.695e-05,2]
[344414575,1733426838672,-200.0,7.695e-05,2]
[344414576,1733426838744,-1819.42553934,7.695e-05,2]
[344414577,1733426838811,-1023.42686588,7.695e-05,2]
[344414578,1733426838878,-3234.53429216,7.695e-05,2]
[344414579,1733426838949,-432.02823662,7.695e-05,2]
[344414580,1733426839013,-200.0,7.695e-05,2]
[344414581,1733426839080,-203.30034248,7.695e-05,2]
[344414582,1733426839143,-456.41892902,7.695e-05,2]
[344414583,1733426839205,-1024.06693124,7.695e-05,2]
[344414584,1733426839274,-242.86399259,7.695e-05,2]
[344414585,1733426839338,-200.0,7.696e-05,2]
[344414586,1733426839401,-431.75820904,7.696e-05,2]
[344414587,1733426839467,-281.55591706,7.696e-05,2]
[344414588,1733426839539,-271.0671233,7.696e-05,2]
[344414589,1733426839608,-203.30034248,7.696e-05,2]
[344414590,1733426839680,-1024.06693124,7.696e-05,2]
[344414591,1733426839759,-456.41892902,7.696e-05,2]
[344414592,1733426839831,-1024.06693124,7.696e-05,2]
[344414593,1733426839897,-324.02117746,7.696e-05,2]
[344414594,1733426839965,-768.05019843,7.696e-05,2]
[344414595,1733426840042,-303.58410442,7.696e-05,2]
[344414596,1733426840112,-768.05019843,7.696e-05,2]
[344414597,1733426840181,-4312.71238954,7.696e-05,2]
[344414598,1733426840273,-200.0,7.696e-05,2]
[344414599,1733426840360,-1819.42553934,7.696e-05,2]
[344414600,1733426840440,-303.58410442,7.696e-05,2]
[344414601,1733426840525,-768.05019843,7.697e-05,2]
[344414602,1733426840615,-576.03764882,7.697e-05,2]
[344414603,1733426840702,-200.0,7.697e-05,2]
[344414604,1733426840789,-342.31419677,7.697e-05,2]
[344414605,1733426840872,-200.0,7.697e-05,2]
[344414606,1733426840952,-768.05019843,7.697e-05,2]
[344414607,1733426841034,-432.02823662,7.697e-05,2]
[344414608,1733426841112,-200.0,7.697e-05,2]
[344414609,1733426841186,-200.0,7.697e-05,2]
[344414610,1733426841249,-200.0,7.697e-05,2]
[344414611,1733426841312,-303.58410442,7.697e-05,2]
[344414612,1733426841373,-576.03764882,7.697e-05,2]
[344414613,1733426841442,-243.0158831,7.697e-05,2]
[344414614,1733426841503,-323.81865678,7.697e-05,2]
[344414615,1733426841568,-200.0,7.697e-05,2]
[344414616,1733426841640,-200.0,7.697e-05,2]
[344414617,1733426841709,-203.30034248,7.698e-05,2]
[344414618,1733426841777,-200.0,7.698e-05,2]
[344414619,1733426841845,-203.30034248,7.698e-05,2]
[344414620,1733426841911,-4312.71238954,7.698e-05,2]
[344414621,1733426841978,-200.0,7.698e-05,2]
[344414622,1733426842047,-2425.90071912,7.698e-05,2]
[344414623,1733426842118,-271.0671233,7.698e-05,2]
[344414624,1733426842205,-200.0,7.698e-05,2]
[344414625,1733426842280,-1364.5691545,7.698e-05,2]
[344414626,1733426842367,-768.05019843,7.698e-05,2]
[344414627,1733426842444,-768.05019843,7.698e-05,2]
[344414628,1733426842513,-200.0,7.698e-05,2]
[344414629,1733426842581,-4312.71238954,7.698e-05,2]
[344414630,1733426842646,-432.02823662,7.698e-05,2]
[344414631,1733426842718,-200.0,7.698e-05,2]
[344414632,1733426843027,-342.31419677,7.699e-05,2]
[344414633,1733426843090,-203.30034248,7.699e-05,2]
[344414634,1733426843157,-256.73564757,7.699e-05,2]
[344414635,1733426843220,-8500.0,7.699e-05,2]
[344414636,1733426843281,-7754.79104734,7.699e-05,2]
[344414637,1733426843357,-242.86399259,7.699e-05,2]
[344414638,1733426843426,-200.0,7.699e-05,2]
[344414639,1733426843495,-227.68807831,7.699e-05,2]
[344414640,1733426843572,-243.0158831,7.699e-05,2]
[344414641,1733426843645,-200.0,7.699e-05,2]
[344414642,1733426843718,-200.0,7.7e-05,2]
[344414643,1733426843791,-200.0,7.7e-05,2]
[344414644,1733426843858,-200.0,7.7e-05,2]
[344414645,1733426843931,-200.0,7.7e-05,2]
[344414646,1733426843998,-432.02823662,7.7e-05,2]
[344414647,1733426844065,-342.31419677,7.7e-05,2]
[344414648,1733426844143,-3234.53429216,7.7e-05,2]
[344414649,1733426844211,-200.0,7.7e-05,2]
[344414650,1733426844280,-200.0,7.7e-05,2]
[344414651,1733426844348,-268.98,7.766e-05,2]
[344414652,1733426844422,-180.0,7.891e-05,2]
[344414653,1733426844496,-5749.92869,8e-05,2]
[344414654,1733426844565,-683.324502,8.178e-05,2]
[344414655,1733426844629,-300.0,8.219e-05,2]
[344414656,1733426844707,-166.94,8.219e-05,2]
[344414657,1733426844776,-2006.69,8.219e-05,2]
[344414658,1733426844843,-1138.37,8.219e-05,2]
[344414659,1733426844910,-8495.59,8.219e-05,2]
[344414660,1733426844979,-250.0,8.219e-05,2]
[344414661,1733426845047,-1000.0,8.219e-05,2]
[344414662,1733426845114,-240.57,8.219e-05,2]
[344414663,1733426845179,-178.0,8.232e-05,2]
[344414664,1733426845250,-604.71,8.265e-05,2]
[344414665,1733426845319,-268.98,8.543e-05,2]
[344414666,1733426845392,-413.9937261,8.55e-05,2]
[344414667,1733426845461,-1902.21937156,8.55e-05,2]
[344414668,1733426845536,-166.76,8.61e-05,2]
[344414669,1733426845605,-200.0,8.74e-05,2]
[344414670,1733426845670,-24003.53,8.767e-05,2]
[344414671,1733426845736,-10073.52105288,9e-05,2]
[344414672,1733426845800,-162809.43090399,9e-05,2]
[344414673,1733426845868,-28000.0,9e-05,2]
[344414674,1733426845940,-166.94,9.041e-05,2]
[344414675,1733426846004,-604.71,9.183e-05,2]
[344414676,1733426846071,-1000.0,9.247e-05,2]
[344414677,1733426846135,-268.98,9.319e-05,2]
[344414678,1733426846199,-166.76,9.567e-05,2]
[344414679,1733426846268,-24403.0,9.636e-05,2]
[344414680,1733426846332,-1466544.6418298,9.8e-05,2]
[344414681,1733426846393,-166.94,9.863e-05,2]
[344414682,1733426846456,-1000.0,0.0001,2]
[344414683,1733426846526,-1000.0,0.0001,2]
[344414684,1733426846590,-1000.0,0.0001,2]
[344414685,1733426846653,-1000.0,0.0001,2]
[344414686,1733426846720,-17233348.46825608,0.0001,2]
[344414687,1733426846783,-413.9937261,0.0001,2]
[344414688,1733426846850,-1902.21937156,0.0001,2]
[344414689,1733426846916,-3000.0,0.0001,2]
[344414690,1733426846982,-9420.04407656,0.00010099,2]
[344414691,1733426847046,-9420.04407648,0.00010099,2]
[344414692,1733426847111,-9420.04407648,0.00010099,2]
[344414693,1733426847173,-9420.04407648,0.00010099,2]
[344414694,1733426847235,-9420.04407648,0.00010099,2]
[344414695,1733426847305,-9420.04407648,0.00010099,2]
[344414696,1733426847369,-9420.04407648,0.00010099,2]
[344414697,1733426847438,-604.71,0.00010101,2]
[344414698,1733426847507,-1000.0,0.00010199,2]
[344414699,1733426847579,-2000.0,0.00010199,2]
[344414700,1733426847651,-2000.0,0.00010199,2]
[344414701,1733426847720,-1000.0,0.00010199,2]
[344414702,1733426847785,-1000.0,0.00010199,2]
[344414703,1733426847862,-1000.0,0.00010199,2]
[344414704,1733426847931,-1000.0,0.00010199,2]
[344414705,1733426848004,-2000.0,0.00010199,2]
[344414706,1733426848078,-2000.0,0.00010199,2]
[344414707,1733426848149,-632.711,0.00010199,2]
[344414708,1733426848222,-1000.0,0.00010199,2]
[344414709,1733426848294,-2000.0,0.00010199,2]
[344414710,1733426848374,-16416213.57481228,0.000102,2]
[344414726,1733427032466,-2500.0,6.9e-05,2]
[344414727,1733427032476,-5171.2876,6.9e-05,2]
[344414728,1733427032485,-2416.7616,7e-05,2]
[344414729,1733427032496,-15865.249422,7e-05,2]
[344414730,1733427032506,-22826.36606349,7e-05,2]
[344414731,1733427032518,-3757.29617445,7e-05,2]
[344414732,1733427032640,-3907.25207333,7e-05,2]
[344414733,1733427032651,-366.72431577,7e-05,2]
[344414734,1733427032662,-3642.37537428,7e-05,2]
[344414735,1733427032815,-2762.48129656,7e-05,2]
[344414736,1733427032884,-308.58868302,7e-05,2]
[344414737,1733427032896,-1151.55012815,7e-05,2]
[344414738,1733427032908,-256.7011023,7e-05,2]
[344414752,1733427038508,-4827.74473672,7e-05,2]
[344414753,1733427038694,-6357.3837682,7e-05,2]
[344414754,1733427038706,-2098.63248715,7e-05,2]
[344414774,1733427040428,-326.18,7e-05,2]
[344414775,1733427040518,-794.27675672,7e-05,2]
[344414776,1733427040530,-5100.73496221,7e-05,2]
[344414777,1733427040745,-3459.88378201,7e-05,2]
[344414778,1733427040759,-7651.91581175,7e-05,2]
[344414792,1733427043653,-14319.36092852,7e-05,2]
[344414793,1733427043775,-7777.5976307,7e-05,2]
[344414794,1733427043820,-4481.32713193,7e-05,2]
[344414795,1733427043836,-487.98,7e-05,2]
[344414796,1733427043847,-505.79,7e-05,2]
[344414797,1733427043858,-651.35,7e-05,2]
[344414798,1733427043873,-7049.7,7e-05,2]
[344414799,1733427043885,-3021.71961669,7e-05,2]
[344414800,1733427043895,-7136.18982,7e-05,2]
[344414801,1733427043906,-8801.2872,7e-05,2]
[344414818,1733427046357,-2781.999996,7e-05,2]
[344414819,1733427046532,-1756.58673793,7e-05,2]
[344414820,1733427046994,-1380.51782641,7e-05,2]
[344414821,1733427047157,-310.48888,7e-05,2]
[344414822,1733427047171,-10071.0954,7e-05,2]
[344414823,1733427110314,-2500.0,6.9e-05,2]
[344414824,1733427110338,-500.0,6.973e-05,2]
[344414825,1733427110363,-1997000.0,7e-05,2]
[344414830,1733427195052,200.0,0.00022343,120]
[344414831,1733427195075,200.0,0.00022343,120]
[344414832,1733427239748,-344.4657,6.9e-05,2]
[344414833,1733427239770,-2500.0,6.9e-05,2]
[344414834,1733427239792,-150.0,6.999e-05,2]
[344414835,1733427239813,-617.62083179,6.999e-05,2]
[344414836,1733427239841,-1996387.91346821,7e-05,2]
[344414842,1733428083579,-1682.032,6.86e-05,2]
[344414843,1733428092993,-163.16044119,6.899e-05,2]
[344414844,1733428093016,-657.19928017,6.899e-05,2]
[344414845,1733428093037,-552.77663403,6.899e-05,2]
[344414846,1733428093060,-150.0,6.899e-05,2]
[344414847,1733428093082,-34412.0895,6.9e-05,2]
[344414848,1733428093104,-552.77663401,6.9e-05,2]
[344414849,1733428111534,-150.0,6.932e-05,2]
[344414850,1733428111558,-150.0,6.941e-05,2]
[344414851,1733428111578,-244.0,6.959e-05,2]
[344414852,1733428111599,-500.0,6.973e-05,2]
[344414853,1733428111622,-500.0,6.973e-05,2]
[344414854,1733428111643,-500.0,6.973e-05,2]
[344414855,1733428111668,-7500.0,6.999e-05,2]
[344414856,1733428111690,-7500.0,6.999e-05,2]
[344414857,1733428119321,-44073.9655106,7e-05,2]
[344414865,1733428231568,-749.61389438,6.93e-05,2]
[344414868,1733428232089,-2258.84839831,6.93e-05,2]
[344414869,1733428232099,-20000.0,7e-05,2]
[344414870,1733428232109,-93151.15160323,7e-05,2]
[344414871,1733428232120,-296.08748421,7e-05,2]
[344414872,1733428232132,-4949.13892,7e-05,2]
[344414873,1733428232143,-49724.675,7e-05,2]
[344414875,1733428232155,-1788115.59049774,7e-05,2]
[344414877,1733428232166,-4689.14308298,7e-05,2]
[344414893,1733428232350,-1923329.01993681,7e-05,2]
[344414894,1733428232386,-7699.99999999,7e-05,2]
[344414895,1733428232794,-257.83793806,7e-05,2]
[344414896,1733428232806,-1926.925,7e-05,2]
[344414897,1733428232817,-2221.37201313,7e-05,2]
[344414898,1733428232855,-1609.740231,7e-05,2]
[344414899,1733428232866,-2161.09725211,7e-05,2]
[344414900,1733428232878,-4980.95970494,7e-05,2]
[344414901,1733428232890,-282.89344877,7e-05,2]
[344414902,1733428232902,-419.80332225,7e-05,2]
[344414903,1733428232914,-550.62852736,7e-05,2]
[344414904,1733428232926,-708.650006,7e-05,2]
[344414905,1733428232937,-30157.63104516,7e-05,2]
[344414906,1733428232948,-3796.02384028,7e-05,2]
[344414907,1733428233153,-1481567.87005722,7e-05,2]
[344414908,1733428233167,-497.28347878,7e-05,2]
[344414909,1733428233179,-43010.79713,7e-05,2]
[344414910,1733428233191,-400.0,7e-05,2]
[344414913,1733428237534,-1087.02868035,7e-05,2]
[344414914,1733428237547,-25293.82431057,7e-05,2]
[344414915,1733428237558,-353.27236423,7e-05,2]
[344414916,1733428237569,-2394.4,7e-05,2]
[344414917,1733428237598,-945.42175673,7e-05,2]
[344414918,1733428237610,-348.48290493,7e-05,2]
[344414919,1733428237622,-20004.0,7e-05,2]
[344414920,1733428237645,-467.62732798,7e-05,2]
[344414921,1733428237657,-5634.69864634,7e-05,2]
[344414922,1733428237669,-7386.4651568,7e-05,2]
[344414923,1733428237681,-272.77,7e-05,2]
[344414924,1733428237694,-28747.47830619,7e-05,2]
[344414925,1733428237734,-3964.8558613,7e-05,2]
[344414926,1733428237747,-24817.25,7e-05,2]
[344414927,1733428237781,-392.80383719,7e-05,2]
[344414928,1733428237793,-9509.37021429,7e-05,2]
[344414929,1733428237829,-9744.78740045,7e-05,2]
[344414940,1733428239627,-199044.0,7e-05,2]
[344414941,1733428239638,-45581.54578009,7e-05,2]
[344414942,1733428239649,-277.19088045,7e-05,2]
[344414943,1733428239699,-361.55789942,7e-05,2]
[344414944,1733428239710,-698.622925,7e-05,2]
[344414945,1733428239857,-12.00000001,7e-05,2]
[344414946,1733428239869,-4226.36227976,7e-05,2]
[344414948,1733428239881,-2654.25788449,7e-05,2]
[344414953,1733428239994,-1795.58607336,7e-05,2]
[344414954,1733428240006,-4991.95,7e-05,2]
[344414955,1733428240018,-301.74811313,7e-05,2]
[344414956,1733428240029,-1997.0685403,7e-05,2]
[344414957,1733428240040,-259.29650811,7e-05,2]
[344414960,1733428242847,-5990.87896732,7e-05,2]
[344414961,1733428242858,-5530.15958011,7e-05,2]
[344414962,1733428242871,-7480.12343532,7e-05,2]
[344414963,1733428242883,-5135.13361715,7e-05,2]
[344414964,1733428242894,-20067.84307527,7e-05,2]
[344414965,1733428242905,-5957.19354315,7e-05,2]
[344414966,1733428242916,-2294.47,7e-05,2]
[344414967,1733428242928,-330.85417088,7e-05,2]
[344414968,1733428242974,-705.0,7e-05,2]
[344414969,1733428242986,-440.74063283,7e-05,2]
[344414970,1733428243001,-10279.12509922,7e-05,2]
[344414971,1733428243012,-1972.88065988,7e-05,2]
[344414972,1733428243023,-81983.000001,7e-05,2]
[344414974,1733428243043,-42073.39734079,7e-05,2]
[344414975,1733428243053,-10045.99999999,7e-05,2]
[344414984,1733428245631,-105408.0,7e-05,2]
[344414985,1733428245642,-5221.76175753,7e-05,2]
[344414986,1733428245654,-96391.23835828,7e-05,2]
[344414988,1733428245678,-71376.31217257,7e-05,2]
[344414997,1733428249643,-308.83375307,7e-05,2]
[344414998,1733428249655,-996.79,7e-05,2]
[344414999,1733428249669,-1205458.32807751,7e-05,2]
[344415000,1733428249680,-1174.68934745,7e-05,2]
[344415001,1733428249692,-5970.0,7e-05,2]
[344415018,1733429077543,-400.0,6e-05,2]
[344415019,1733429077567,-508.99,6.004e-05,2]
[344415020,1733429077592,-800.0,6.1e-05,2]
[344415021,1733429077615,-3367.542737,6.19e-05,2]
[344415022,1733429077638,-342.63347967,6.19e-05,2]
[344415023,1733429077660,-200.0,6.19e-05,2]
[344415024,1733429077684,-1200.0,6.2e-05,2]
[344415025,1733429077705,-1086.3,6.221e-05,2]
[344415026,1733429077730,-1700.0,6.3e-05,2]
[344415027,1733429077753,-150.0,6.301e-05,2]
[344415028,1733429077779,-300.0,6.399e-05,2]
[344415029,1733429077801,-2100.0,6.4e-05,2]
[344415030,1733429077840,-164.85,6.455e-05,2]
[344415031,1733429077861,-1001.6508842,6.455e-05,2]
[344415032,1733429077882,-400.0,6.5e-05,2]
[344415033,1733429077905,-250.0,6.512e-05,2]
[344415034,1733429077927,-250.0,6.585e-05,2]
[344415035,1733429077948,-400.0,6.6e-05,2]
[344415036,1733429077968,-23900.0,6.61e-05,2]
[344415037,1733429077990,-400.0,6.7e-05,2]
[344415038,1733429078012,-1248.0,6.792e-05,2]
[344415039,1733429078036,-400.0,6.8e-05,2]
[344415040,1733429078056,-4923.00435436,6.9e-05,2]
[344415041,1733429078077,-298000.0,6.9e-05,2]
[344415042,1733429078099,-821.0,6.9e-05,2]
[344415043,1733429078121,-2500.0,6.9e-05,2]
[344415044,1733429078142,-938.0,6.959e-05,2]
[344415045,1733429078164,-1245.0,6.959e-05,2]
[344415046,1733429078187,-500.0,6.973e-05,2]
[344415047,1733429078210,-500.0,6.973e-05,2]
[344415048,1733429078237,-500.0,6.973e-05,2]
[344415049,1733429078262,-160.98827581,6.973e-05,2]
[344415050,1733429078297,-5112.9602596,6.989e-05,2]
[344415051,1733429078324,-232.4130952,6.994e-05,2]
[344415052,1733429078345,-150.0,6.998e-05,2]
[344415053,1733429078371,-1000.0,6.999e-05,2]
[344415054,1733429078392,-1302.09831988,6.999e-05,2]
[344415055,1733429078413,-200.86049111,6.999e-05,2]
[344415056,1733429078434,-2957.116,6.999e-05,2]
[344415057,1733429078455,-215.558,6.999e-05,2]
[344415058,1733429078478,-1168.83194745,6.999e-05,2]
[344415059,1733429078499,-20000.0,7e-05,2]
[344415060,1733429078526,-10697526.32291158,7e-05,2]
[344415061,1733429078547,-499.02,7e-05,2]
[344415062,1733429078569,-509.76,7e-05,2]
[344415063,1733429078598,-509.72,7e-05,2]
[344415064,1733429078625,-492.32,7e-05,2]
[344415065,1733429078648,-490.58,7e-05,2]
[344415066,1733429078670,-501.58,7e-05,2]
[344415067,1733429078693,-462613.86,7e-05,2]
[344415068,1733429078715,-493.39,7e-05,2]
[344415069,1733429078740,-498.06,7e-05,2]
[344415070,1733429078763,-492.68,7e-05,2]
[344415071,1733429078787,-492.65,7e-05,2]
[344415072,1733429078809,-498.72,7e-05,2]
[344415073,1733429078833,-508.31,7e-05,2]
[344415074,1733429078854,-497.7,7e-05,2]
[344415075,1733429078875,-501.18,7e-05,2]
[344415076,1733429078896,-918.4262,7e-05,2]
[344415077,1733429078918,-8595.53045582,7e-05,2]
[344415078,1733429078941,-420.0,7.039e-05,2]
[344415079,1733429078961,-8595.5304558,7.131e-05,2]
[344415080,1733429078982,-269.9803453,7.195e-05,2]
[344415081,1733429079003,-307.5475954,7.195e-05,2]
[344415082,1733429079030,-345.1148456,7.195e-05,2]
[344415083,1733429079053,-382.6820957,7.195e-05,2]
[344415084,1733429079074,-5917.8097453,7.195e-05,2]
[344415085,1733429079095,-6722.659231,7.195e-05,2]
[344415086,1733429079120,-7527.5087167,7.195e-05,2]
[344415087,1733429079143,-8332.3582024,7.195e-05,2]
[344415088,1733429079167,-54784675.32518773,7.2e-05,2]
[344415089,1733429079437,250.0,5.784e-05,2]
[344415090,1733429129282,298000.0,6.8e-05,2]
[344415091,1733429312464,23900.0,6.712e-05,2]
[344415108,1733429431740,-509.9,7.242e-05,2]
[344415109,1733429431752,-29.23129755,7.242e-05,2]
[344415110,1733429431766,-778.49786205,7.242e-05,2]
[344415111,1733429431777,-581.50213795,7.247e-05,2]
[344415112,1733429431791,-2597.53895745,7.247e-05,2]
[344415113,1733429431803,-506.18,7.247e-05,2]
[344415114,1733429431815,-508.81,7.247e-05,2]
[344415115,1733429431827,-506.32,7.247e-05,2]
[344415116,1733429431838,-300.0,7.251e-05,2]
[344415117,1733429431861,-7152.33858718,7.252e-05,2]
[344415118,1733429431876,-3943.98281272,7.252e-05,2]
[344415119,1733429431887,-342.63347967,7.252e-05,2]
[344415120,1733429431899,-500.53,7.252e-05,2]
[344415121,1733429431911,-509.4,7.252e-05,2]
[344415122,1733429431923,-504.0,7.252e-05,2]
[344415123,1733429431935,-491.56,7.252e-05,2]
[344415124,1733429431947,-506.18,7.252e-05,2]
[344415125,1733429431959,-498.57,7.257e-05,2]
[344415126,1733429431971,-420.2493462,7.257e-05,2]
[344415127,1733429431983,-6834.5327364,7.257e-05,2]
[344415128,1733429431995,-496.25,7.257e-05,2]
[344415129,1733429432006,-494.74,7.258e-05,2]
[344415130,1733429432019,-504.67,7.258e-05,2]
[344415131,1733429432031,-500.0,7.26e-05,2]
[344415132,1733429432042,-164.85,7.262e-05,2]
[344415133,1733429432053,-504.69,7.299e-05,2]
[344415134,1733429432065,-503.39,7.311e-05,2]
[344415135,1733429432077,-492.36,7.328e-05,2]
[344415136,1733429432088,-504.44,7.349e-05,2]
[344415137,1733429432108,-491.15,7.379e-05,2]
[344415138,1733429432119,-198.08,7.397e-05,2]
[344415139,1733429432131,-150.0,7.443e-05,2]
[344415140,1733429432143,-156.99,7.478e-05,2]
[344415141,1733429432155,-150.0,7.479e-05,2]
[344415142,1733429432167,-400.0,7.6e-05,2]
[344415143,1733429432179,-5938.0,7.653e-05,2]
[344415144,1733429432191,-200.0,7.677e-05,2]
[344415145,1733429432203,-200.0,7.678e-05,2]
[344415146,1733429432214,-200.0,7.68e-05,2]
[344415147,1733429432224,-200.0,7.68e-05,2]
[344415148,1733429432773,-200.0,7.681e-05,2]
[344415149,1733429432808,-200.0,7.681e-05,2]
[344415150,1733429432835,-200.0,7.681e-05,2]
[344415151,1733429432846,-200.0,7.681e-05,2]
[344415152,1733429432864,-200.0,7.682e-05,2]
[344415153,1733429432873,-25408.82066941,7.682e-05,2]
[344415154,1733429432883,-25408.82066941,7.682e-05,2]
[344415155,1733429432892,-200.0,7.682e-05,2]
[344415156,1733429432903,-200.0,7.683e-05,2]
[344415157,1733429432913,-25408.82066941,7.683e-05,2]
[344415158,1733429432922,-200.0,7.683e-05,2]
[344415159,1733429432931,-200.0,7.683e-05,2]
[344415160,1733429432940,-200.0,7.683e-05,2]
[344415161,1733429432950,-200.0,7.684e-05,2]
[344415162,1733429432959,-200.0,7.684e-05,2]
[344415163,1733429432969,-200.0,7.684e-05,2]
[344415164,1733429432978,-200.0,7.684e-05,2]
[344415165,1733429432988,-200.0,7.684e-05,2]
[344415166,1733429432997,-200.0,7.685e-05,2]
[344415167,1733429433007,-200.0,7.685e-05,2]
[344415168,1733429433017,-200.0,7.685e-05,2]
[344415169,1733429433026,-200.0,7.686e-05,2]
[344415170,1733429433036,-25408.82066941,7.687e-05,2]
[344415171,1733429433046,-200.0,7.688e-05,2]
[344415172,1733429433055,-200.0,7.688e-05,2]
[344415173,1733429433064,-200.0,7.689e-05,2]
[344415174,1733429433075,-200.0,7.689e-05,2]
[344415175,1733429433085,-200.0,7.689e-05,2]
[344415176,1733429433095,-200.0,7.689e-05,2]
[344415177,1733429433111,-200.0,7.689e-05,2]
[344415178,1733429433121,-200.0,7.69e-05,2]
[344415179,1733429433131,-25408.82066941,7.69e-05,2]
[344415180,1733429433141,-200.0,7.69e-05,2]
[344415181,1733429433151,-200.0,7.69e-05,2]
[344415182,1733429433162,-200.0,7.69e-05,2]
[344415183,1733429433172,-200.0,7.69e-05,2]
[344415184,1733429433183,-200.0,7.691e-05,2]
[344415185,1733429433193,-200.0,7.691e-05,2]
[344415186,1733429433203,-25408.82066941,7.691e-05,2]
[344415187,1733429433213,-33878.42755921,7.691e-05,2]
[344415188,1733429433223,-200.0,7.692e-05,2]
[344415189,1733429433234,-200.0,7.692e-05,2]
[344415190,1733429433245,-200.0,7.693e-05,2]
[344415191,1733429433254,-200.0,7.693e-05,2]
[344415192,1733429433265,-200.0,7.693e-05,2]
[344415193,1733429433276,-200.0,7.694e-05,2]
[344415194,1733429433286,-200.0,7.694e-05,2]
[344415195,1733429433295,-200.0,7.694e-05,2]
[344415196,1733429433305,-200.0,7.694e-05,2]
[344415197,1733429433316,-33878.42755921,7.695e-05,2]
[344415198,1733429433326,-200.0,7.696e-05,2]
[344415199,1733429433336,-200.0,7.696e-05,2]
[344415200,1733429433346,-200.0,7.696e-05,2]
[344415201,1733429433364,-33878.42755921,7.696e-05,2]
[344415202,1733429433374,-33878.42755921,7.697e-05,2]
[344415203,1733429433385,-200.0,7.697e-05,2]
[344415204,1733429433396,-33878.42755921,7.697e-05,2]
[344415205,1733429433407,-33878.42755921,7.697e-05,2]
[344415206,1733429433418,-200.0,7.697e-05,2]
[344415207,1733429433429,-200.0,7.698e-05,2]
[344415208,1733429433441,-200.0,7.698e-05,2]
[344415209,1733429433451,-150.0,7.698e-05,2]
[344415210,1733429433461,-200.0,7.699e-05,2]
[344415211,1733429433472,-496.68,7.699e-05,2]
[344415212,1733429433484,-8500.0,7.699e-05,2]
[344415213,1733429433495,-2000.0,7.699e-05,2]